Cogmind - Beta 12 @@@ ROGUE MODE // 2023.12.20 @ 12:58:23 Player: neongurkan Result: Destroyed by as-64890 with Assembled Heavy Rifle Performance ------------- Evolutions (0) 0 Regions Visited (4) 800 Robots Destroyed (22) 110 Value Destroyed (446) 446 Prototype IDs (0) 0 Alien Tech Used (0) 0 Bonus (-1) -1 TOTAL SCORE: 1355 Bonus ------- Friendly Fire -1 Cogmind --------- Core Integrity 0/250 Matter 300/300 Energy 160/160 System Corruption 1% Temperature Cool (40) Movement Walking (190) Ox1 Location -9/Mines Parts ------- > --- POWER (1) -------- Light Nuclear Core > --- PROPULSION (2) --- Aluminum Leg (fused) Aluminum Leg > --- UTILITY (2) ------ Large Storage Unit Targeting Computer > --- WEAPON (2) ------- Particle Gun > --- INVENTORY (15) --- Light Ion Engine Light Ion Engine Light Ion Engine Heat Sink Improved Heat Sink Large Storage Unit Large Storage Unit Large Storage Unit Huge Storage Unit EM Pulse Gun EM Shotgun Light Assault Rifle Light Assault Rifle Peak State ------------ > --- POWER ------------ Light Nuclear Core > --- PROPULSION ------- Aluminum Leg Aluminum Leg > --- UTILITY ---------- Small Storage Unit Targeting Computer > --- WEAPON ----------- Particle Gun Grenade Launcher > --- INVENTORY -------- Ion Engine Light Ion Engine Aluminum Leg Aluminum Leg Wheel Compact Wheel Improved Heat Sink EM Pulse Gun [Rating: 11] Favorites ----------- Power Light Nuclear Core Engine Light Ion Engine Power Core Light Nuclear Core Propulsion Aluminum Leg Treads Light Treads Leg Aluminum Leg Utility Targeting Computer Storage Large Storage Unit Processor Targeting Computer Weapon Particle Gun Energy Gun Particle Gun Ballistic Gun Assault Rifle Launcher Grenade Launcher Build | -11 -10 -10 -10 -9 ------- Run | Jun Mat Min Exi Min Slots Evolved . | . . . . . Power . | . . . . . Propulsion . | . . . . . Utility . | . . . . . Weapon . | . . . . . Parts Attached 22 | 7 10 4 1 . Power 5 | 1 2 2 . . Engine 3 | 1 1 1 . . Core 2 | . 1 1 . . Reactor . | . . . . . Propulsion 8 | 3 3 2 . . Treads 1 | 1 . . . . Leg 7 | 2 3 2 . . Wheel . | . . . . . Hover . | . . . . . Flight . | . . . . . Utility 5 | 1 3 . 1 . Device . | . . . . . Storage 4 | 1 2 . 1 . Processor 1 | . 1 . . . Hackware . | . . . . . Protection . | . . . . . Artifact . | . . . . . Weapon 4 | 2 2 . . . Energy Gun 2 | 1 1 . . . Energy Cannon . | . . . . . Ballistic Gun 1 | 1 . . . . Ballistic Cannon . | . . . . . Launcher 1 | . 1 . . . Special Weapon . | . . . . . Impact Weapon . | . . . . . Slashing Weapon . | . . . . . Piercing Weapon . | . . . . . Special Melee Weapon . | . . . . . Unidentified Prototypes . | . . . . . Corrupted Parts 1 | . 1 . . . System Corruption 1 | . 1 . . . Parts Lost 6 | . 2 3 . 1 Power 1 | . . 1 . . Propulsion 2 | . . 2 . . Utility . | . . . . . Weapon 3 | . 2 . . 1 Highest Loss Streak 2 | . 1 2 . 1 To Critical Strikes 1 | . 1 . . . Average Slot Usage (%) 98 | . 97 97 100 100 Engine 4 | . 8 4 . . Core 9 | . 5 8 14 14 Leg 27 | . 28 26 28 28 Storage 14 | . 14 14 14 14 Processor 13 | . 11 14 14 14 Energy Gun 13 | . 13 14 14 14 Ballistic Gun 2 | . 8 . . . Launcher 11 | . 5 14 14 14 Naked Turns . | . . . . . Heaviest Build 91 | 12 91 31 31 31 Greatest Support 20 | 20 20 20 20 20 Greatest Overweight (x) 4 | 1 4 3 1 1 Average Overweight (x) . | . . 1 1 1 Largest Inventory Capacity 25 | 8 25 15 15 15 Average Capacity 13 | 6 10 15 15 15 Most Carried 13 | 4 9 11 12 13 Average Carried 8 | 2 6 9 10 12 Final Capacity 15 | 8 15 15 15 15 Final Carried 13 | 4 8 10 12 13 Class Distribution -------------------- 100% | Mutant Dominant Class ---------------- Mutant | -10/Materials Mutant | -10/Mines Mutant | -10/Exiles Mutant | -9/Mines Resources | -11 -10 -10 -10 -9 ----------- Run | Jun Mat Min Exi Min Matter Collected 647 | 227 278 112 . 30 Remotely . | . . . . . Salvage Created 666 | . 477 176 . 13 Parts 42 | . 27 15 . . Haulers Intercepted 1 | . 1 . . . Recyclers Shooed . | . . . . . Parts Field Recycled . | . . . . . Retrieved Matter . | . . . . . Parts Self-Destructed . | . . . . . Prevented . | . . . . . Kills | -11 -10 -10 -10 -9 ------- Run | Jun Mat Min Exi Min Combat Hostiles Destroyed 17 | . 9 5 . 3 Guns 9 | . 8 1 . . AOE 8 | . 1 4 . 3 Classes Destroyed 8 | . 6 1 . 1 Builder 1 | . 1 . . . Tunneler 2 | . . 2 . . Hauler 1 | . 1 . . . Recycler 2 | . 1 1 . . Watcher 2 | . 2 . . . Swarmer 6 | . 3 3 . . Grunt 8 | . 6 2 . . Assembled 3 | . . . . 3 Best Kill Streak 8 | . 8 4 . 3 Combat Bots Only 5 | . 5 3 . 3 Max Kills in Single Turn 3 | . 2 2 . 3 Gunslinging 1 | . 1 . . . Exploded 3 | . 1 2 . 3 Melee . | . . . . . Uniques/NPCs Destroyed . | . . . . . Combat | -11 -10 -10 -10 -9 -------- Run | Jun Mat Min Exi Min Damage Taken 994 | . 635 156 . 203 Core 254 | . 151 40 . 63 Absorbed by Shields . | . . . . . Core Remaining (%) 100 | 100 . . . . Volleys Fired 53 | 2 40 8 . 3 Largest 2 | 2 2 2 . 2 Hottest 95 | 60 95 95 . 95 Shots Fired 91 | 4 68 15 . 4 Gun 80 | 4 65 8 . 3 Cannon . | . . . . . Launcher 11 | . 3 7 . 1 Special . | . . . . . Kinetic 39 | 2 37 . . . Thermal 18 | . 7 8 . 3 Explosive 11 | . 3 7 . 1 Electromagnetic 23 | 2 21 . . . Robot Hit Streak 12 | 1 12 4 . 3 Robot Miss Streak 3 | 1 3 1 . 1 Penetration Max . | . . . . . Secondary Targets 2 | . 2 . . . Max Gunslinging Chain 1 | . 1 . . . Shots Hit Robots 46 | 2 34 7 . 3 Core Hits 36 | . 22 8 . 6 Critical Kills . | . . . . . Critical Parts Destroyed . | . . . . . Critical Strikes 1 | . 1 . . . Burn 1 | . 1 . . . Melee Attacks . | . . . . . Impact . | . . . . . Slashing . | . . . . . Piercing . | . . . . . Sneak Attacks . | . . . . . Combat Hostiles . | . . . . . Follow-up Attacks . | . . . . . Damage Inflicted 1350 | 23 806 321 . 200 Guns 625 | 23 500 70 . 32 Cannons . | . . . . . Explosions 723 | . 304 251 . 168 Melee . | . . . . . Ramming 2 | . 2 . . . Kinetic 296 | 23 273 . . . Thermal 331 | . 229 70 . 32 Explosive 566 | . 147 251 . 168 Electromagnetic 155 | . 155 . . . Impact . | . . . . . Slashing . | . . . . . Piercing . | . . . . . Highest Corruption 1 | . 1 1 1 1 Average Corruption 1 | . 1 1 1 1 Corruption Purged . | . . . . . Corruption Blocked . | . . . . . Effects 9 | . 2 4 2 1 Message Errors 1 | . . . 1 . Matter Fused 3 | . 1 1 1 . Heat Flow Errors 1 | . . 1 . . Energy Discharges 3 | . 1 1 . 1 Parts Fused 1 | . . 1 . . Overload Shots . | . . . . . Overflow Damage 35 | . 26 9 . . Projectiles . | . . . . . Explosions 35 | . 26 9 . . Melee . | . . . . . Knockbacks . | . . . . . Impact . | . . . . . Kinetic . | . . . . . Secondary . | . . . . . Self-Inflicted Damage 159 | . 52 72 . 35 Shots 7 | . 2 4 . 1 Rammed . | . . . . . Targets Rammed 1 | . 1 . . . Kicked 1 | . 1 . . . Crushed . | . . . . . Highest Temperature 150 | . 150 142 . 56 Average Temperature 43 | . 43 45 . 28 Received Heat Transfer 306 | . 276 30 . . Siege Activations . | . . . . . Robots Corrupted . | . . . . . Combat Hostiles . | . . . . . Parts Fried . | . . . . . Impact Corruptions . | . . . . . Robots Melted . | . . . . . Combat Hostiles . | . . . . . Parts Melted . | . . . . . Heat Transferred 668 | . 409 185 . 74 Parts Sabotaged . | . . . . . Parts Stolen . | . . . . . Parts Stripped . | . . . . . Power Chain Reactions 1 | . 1 . . . Missiles Intercepted . | . . . . . Alert | -11 -10 -10 -10 -9 ------- Run | Jun Mat Min Exi Min Peak Influence 307 | . 307 204 . 26 Initial 41 | . . 41 . . Average 108 | . 147 105 . 3 Maximum Alert Level 1 | . 1 1 . . Low Security (%) 77 | 100 69 77 . 100 Level 1 22 | . 30 22 . . Level 2 . | . . . . . Level 3 . | . . . . . Level 4 . | . . . . . Level 5 . | . . . . . High Security . | . . . . . Max Security . | . . . . . Squads Dispatched 1 | . 1 . . . Investigation . | . . . . . Extermination . | . . . . . Reinforcement 1 | . 1 . . . Assault . | . . . . . Garrison . | . . . . . Intercept . | . . . . . Searches Triggered . | . . . . . Construction Impeded . | . . . . . Haulers Reinforced . | . . . . . Active Scanning Responses . | . . . . . Cargo Convoy Interrupts . | . . . . . Stealth | -11 -10 -10 -10 -9 --------- Run | Jun Mat Min Exi Min Distress Signals 1 | . 1 . . . Communications Jammed . | . . . . . Distress Signals . | . . . . . Times Spotted 26 | . 13 6 . 7 Peak Tracking Total 7 | . 4 3 . 7 Tactical Retreats 1 | . . 1 . . Traps | -11 -10 -10 -10 -9 ------- Run | Jun Mat Min Exi Min Traps Triggered . | . . . . . Indirectly . | . . . . . Trap Hack Attempts . | . . . . . Triggered . | . . . . . Disarmed . | . . . . . Reprogrammed . | . . . . . Reused . | . . . . . Traps Extracted . | . . . . . Installed . | . . . . . Triggered . | . . . . . Machines | -11 -10 -10 -10 -9 ---------- Run | Jun Mat Min Exi Min Machines Disabled 3 | . 3 . . . Max in Single Turn 2 | . 2 . . . Machines Repaired . | . . . . . Machines Sabotaged . | . . . . . Overloaded Fab Kills . | . . . . . Hacking | -11 -10 -10 -10 -9 --------- Run | Jun Mat Min Exi Min Machines Accessed 1 | . . . 1 . Terminals . | . . . . . Fabricators . | . . . . . Repair Stations . | . . . . . Recycling Units . | . . . . . Scanalyzers . | . . . . . Garrison Access . | . . . . . Total Hacks 23 | . . . 23 . Successful 23 | . . . 23 . Failed . | . . . . . Catastrophic . | . . . . . Database Lockouts . | . . . . . Manual . | . . . . . Terminals . | . . . . . Fabricators . | . . . . . Repair Stations . | . . . . . Recycling Units . | . . . . . Scanalyzers . | . . . . . Garrison Access . | . . . . . Terminal Hacks 23 | . . . 23 . Record 23 | . . . 23 . Fabricator Hacks . | . . . . . Repair Station Hacks . | . . . . . Recycling Unit Hacks . | . . . . . Scanalyzer . | . . . . . Garrison Access Hacks . | . . . . . Unauthorized Hacks . | . . . . . Terminals . | . . . . . Fabricators . | . . . . . Repair Stations . | . . . . . Recycling Units . | . . . . . Scanalyzers . | . . . . . Garrison Access . | . . . . . Data Cores Recovered . | . . . . . Used . | . . . . . Hacking Detections . | . . . . . Full Trace Events . | . . . . . Feedback Events . | . . . . . Feedback Blocked . | . . . . . Robot Schematics Acquired . | . . . . . Robots Built . | . . . . . Authchips . | . . . . . Time . | . . . . . Total Robot Build Rating . | . . . . . Part Schematics Acquired . | . . . . . Parts Built . | . . . . . Authchips . | . . . . . Time . | . . . . . Total Part Build Rating . | . . . . . Parts Repaired . | . . . . . Time . | . . . . . Parts Recycled . | . . . . . Recycled Matter . | . . . . . Retrieved Matter . | . . . . . Retrieved Components . | . . . . . Parts Scanalyzed . | . . . . . Part Schematics Acquired . | . . . . . Parts Damaged . | . . . . . Bothacking | -11 -10 -10 -10 -9 ------------ Run | Jun Mat Min Exi Min Used RIF Installer . | . . . . . Robots Hacked . | . . . . . Non-combat . | . . . . . Combat . | . . . . . Robot Hacks Applied . | . . . . . Relay Couplers Released . | . . . . . Fabnet Peak Effective % . | . . . . . Robots Rewired . | . . . . . Allies Hacked . | . . . . . Hacks Repelled . | . . . . . Allies | -11 -10 -10 -10 -9 -------- Run | Jun Mat Min Exi Min Total Allies 3 | . . 3 . . Largest Group 3 | . . 3 3 3 Highest-Rated Group 40 | . . 40 40 40 Highest-Rated Ally 16 | . . 16 16 16 Total Orders . | . . . . . Ally Attacks 7 | . . . . 7 Total Damage 64 | . . . . 64 Kills 2 | . . . . 2 Allies Corrupted . | . . . . . Allies Melted . | . . . . . Intel | -11 -10 -10 -10 -9 ------- Run | Jun Mat Min Exi Min Robot Analysis Total . | . . . . . Derelict Logs Recovered 1 | . . 1 . . Drone Launches . | . . . . . Drone Recoveries . | . . . . . Exploration | -11 -10 -10 -10 -9 ------------- Run | Jun Mat Min Exi Min Turns Passed 1467 | 74 433 531 361 68 Spaces Moved 737 | 51 212 257 185 32 Core 14 | 14 . . . . Treads . | . . . . . Legs 723 | 37 212 257 185 32 Wheels . | . . . . . Hover . | . . . . . Flight . | . . . . . Fastest Speed 50 | 50 120 190 190 190 Average Speed 172 | 104 141 195 190 190 Slowest Speed 400 | 120 400 330 190 190 Overloaded Moves . | . . . . . Propulsion Burnouts . | . . . . . Robots Hopped . | . . . . . Cave-ins Triggered . | . . . . . Exploration Rate (%) 30 | 4 40 40 50 18 Regions Visited 4 Branch Regions 3 Pre-discovered Areas 1 | . . . 1 . Known Exits Taken . | . . . . . Unknown Exits Taken 4 | 1 1 1 1 . Scrap Searched 1 | . . . . 1 Spaces Dug . | . . . . . Terrain Destroyed 84 | . 25 48 . 11 Melee . | . . . . . Projectile . | . . . . . AOE 84 | . 25 48 . 11 Terrain Rammed . | . . . . . Walls Destroyed . | . . . . . Machines Disabled . | . . . . . Actions | -11 -10 -10 -10 -9 --------- Run | Jun Mat Min Exi Min Total 842 | 64 277 271 194 36 Wait . | . . . . . Move 733 | 50 211 256 184 32 Hop . | . . . . . Pick Up 19 | 4 10 3 1 1 Fast Attach 9 | 7 1 1 . . Attach 5 | . 3 2 . . Detach . | . . . . . Swap 8 | . 6 1 1 . Drop 6 | 1 5 . . . Fire 53 | 2 40 8 . 3 Melee . | . . . . . Ram . | . . . . . Kick 1 | . 1 . . . Crush . | . . . . . Escape Stasis . | . . . . . Rewire 8 | . . . 8 . Trap . | . . . . . Miscellaneous . | . . . . . Route ------- -11/Junkyard -10/Materials -10/Mines -10/Exiles -9/Mines History --------- Turn | Location | Event 4 | -11/Junkyard | Discovered new exit (range 15) 75 | -11/Junkyard | Entered Materials 316 | -10/Materials | Build established: Mutant 327 | -10/Materials | Core integrity fell below 50% 336 | -10/Materials | Discovered new exit (range 8) 508 | -10/Materials | Entered Mines 581 | -10/Mines | Learned 2 Materials zone layouts 840 | -10/Mines | Assisted by bots powering up and referring to "LRC-V3" 1030 | -10/Mines | Deemed a non-threat by the Exiles lab entrance 1032 | -10/Mines | Discovered new exit (range 5) 1039 | -10/Mines | Entered Exiles 1039 | -10/Exiles | Accompanied by 3 allies 1087 | -10/Exiles | Met 8R-AWN 1117 | -10/Exiles | Met EX-HEX 1245 | -10/Exiles | Met EX-DEC 1255 | -10/Exiles | Learned location of Zion (-7) 1377 | -10/Exiles | Discovered new exit (range 14) 1400 | -10/Exiles | Entered Mines 1400 | -9/Mines | Accompanied by 3 allies 1404 | -9/Mines | Met a Derelict bent on vengeance 1424 | -9/Mines | Assembled infested the area 1429 | -9/Mines | Assisted by a Guerilla fighting off Assembled 1458 | -9/Mines | Core integrity fell below 20% 1468 | -9/Mines | Destroyed by as-64890 with Assembled Heavy Rifle Last Messages --------------- I've been tracking a group of Assembled to figure out where they're coming from, and they're closing on this area, come on!" Searching scrap... Found EM Shotgun. Found 14 Matter. Acquired 14 matter. Acquired EM Shotgun. ZQ-9UY(h): "I'll hold them off! Go on ahead or try to find another way!" HV Slug penetrates as-87395. as-87395 knocked back. ZQ-9UY(h) destroyed. as-87395 destroyed. as-10045 destroyed. as-05597 destroyed. Mercenary 1a destroyed. Acquired 16 matter. Destroyed Asb. Hover Unit. as-13691 destroyed. Grenade Launcher destroyed. Map ----- +----------------------------------------------------+ | ?????????????????????????????????????????????????? | | ?????????????????????????????????????????????????? | | ?????????????????????????????????????????????????? | | ?????????????????????????????????????????????????? | | ?????????????????????????????????????????????????? | | ?????????????????????????????????????????????????? | | ?????????????????????????????????????????????????? | | ?????????????????????????????????????????????????? | | ?????????????????????????????????????????????????? | | ?????????????????????????????????????????????????? | | ?????????????????????????????????????????????????? | | ?????????????????????????????????????????????????? | | ?????????????????????????????????????????????????? | | ?????????????????????????????????????????????????? | | ?????????????????????????????????????????????????? | | ????????????????????####?????????????????????????? | | ????????????????????? ####?????????????????????? | | ????????????????????? ??????????????????????? | | ?????????????????????? ??????????????????????? | | ?????????????????????? ??????????????????????? | | ??????????????????????# ???????????????????????? | | ??????????????????????# ???????????????????????? | | ??????????????????????# #?????????% ????????????? | | ?????????????????????## ####??? ! ???????????? | | ?????????????????????# % ## < #?????????? | | ?????????????????????# %@% a #?????????? | | ?????????????????????# %% % a ;#????????? | | ??????????? ### ????# = #### ????????? | | ???????????? ??##= ####?????? ## ?????????? | | ????????????? """ ##g%!##???????????????????????? | | ????????????? """ g ##??????????????????????? | | ????????? """ ##?????????????????????? | | ???????? ##????????????????????? | | ???????????## #????????????????????? | | ????????????##### #????????????????????? | | ????????????????### ####?????????????????? | | ??????????????????###### #?????????????????? | | ???????????????????????## ### #?????????????????? | | ????????????????????????####?# #?????????????????? | | ?????????????????????????????# #?????????????????? | | ????????????????????????????## ### #?????????????? | | ????????????????????????????# #?????????????? | | ?????????????????#########??# ######?????????????? | | ????????????????## ##?# ##?????????????????? | | ????????????????# ### ##??????###???????? | | ????????????????# #### ##??????? | | ????????????????# #??????? | | ????????????????## #??????? | | ?????????????????############### ##??????? | | ????????????????????????????????# ####???????? | +----------------------------------------------------+ Best States ------------- Heat Dissipation 25 Energy Generation 14 Energy Capacity 160 Matter Stores 300 Matter Capacity 300 Sight Range 16 Terrain Scan Density 10 Evasion (%) 55 Targeting Accuracy 5 Item Schematics ----------------- None Robot Schematics ------------------ None Fabricated ------------ Nothing Alien Tech Used ----------------- None Achievements -------------- None Challenges ------------ None Game ------ Seed FluxAssembledBroadsword Manual? 0 Play Time 00:11:10 Cumulative 5.4 hours Start 2023.12.20 @ 12:47:41 End 2023.12.20 @ 12:58:23 Sessions 1 Manual Loads 0 Difficulty Rogue Special Mode None Game No. 15 Rogue 15 Adventurer 0 Explorer 0 Win Type - Total 0 Types 0/0/0/0/0/0/0/0/0 Lore% 8 Gallery% 11 Achievement% 10 Wizard Run 0 Options --------- ASCII 0 Keyboard 0 Movement Mouse Keybinds 0 Fullscreen 1 Font 18/Smallcaps Map View 70x54 Tactical HUD 0 Map Filters NONE Filters NONE Steam 1 RUN: 6ade5abc-e4d4-4356-a331-9d5250d016a6